bitfinex/quotes_ETHUSD_20260117
["timestamp","ask_amount","ask_price","bid_price","bid_amount"]
[1768630704850,0.001,3286.5,3286.4,3.34286667]
[1768630705056,0.502,3286.8,3286.4,3.34286667]
[1768630705858,3.06357501,3286.8,3286.4,3.34286667]
[1768630708320,3.06357501,3286.8,3286.4,2.74520441]
[1768630709560,3.06357501,3286.8,3286.4,5.78802937]
[1768630709941,0.502,3286.8,3286.4,5.78802937]
[1768630710260,0.502,3286.8,3286.5,2.74520441]
[1768630713361,2.56157501,3286.9,3286.5,2.74520441]
[1768630713866,2.56157501,3286.9,3286.5,5.78795464]
[1768630714967,2.56157501,3286.9,3286.5,2.74520441]
[1768630717373,2.63764963,3287.1,3286.5,2.74520441]
[1768630717578,3.13964963,3287.1,3286.6,2.86278938]
[1768630719962,2.63764963,3287.0,3286.6,0.27452044]
[1768630723666,2.63764963,3286.9,3286.6,0.27452044]
[1768630723867,2.63764963,3286.9,3286.4,3.0428318]
[1768630725566,0.001,3286.7,3286.4,3.0428318]
[1768630725768,2.63764963,3286.9,3286.4,3.0428318]
[1768630728189,2.63764963,3286.9,3286.4,2.58826894]
[1768630731359,2.63764963,3286.9,3286.4,5.63109935]
[1768630731657,2.63764963,3286.9,3286.5,0.56310994]
[1768630737411,2.63764963,3286.9,3286.7,0.002]
[1768630739696,3.54427154,3287.1,3286.7,0.002]
[1768630739892,2.68239795,3287.0,3286.7,0.002]
[1768630750110,6.22661593,3287.1,3286.7,0.002]
[1768630750277,0.2846535,3287.0,3286.7,0.002]
[1768630750479,6.22661593,3287.1,3286.7,0.002]
[1768630750675,0.28464805,3287.0,3286.7,0.002]
[1768630750907,6.22661593,3287.1,3286.7,0.002]
[1768630751108,0.28464446,3287.0,3286.7,0.002]
[1768630751308,6.22661593,3287.1,3286.7,0.002]
[1768630751509,0.28464403,3287.0,3286.7,0.002]
[1768630751712,6.22661593,3287.1,3286.7,0.002]
[1768630751914,0.2846469,3287.0,3286.7,0.002]
[1768630752091,6.22661593,3287.1,3286.7,0.002]
[1768630752294,0.28464676,3287.0,3286.7,0.002]
[1768630752491,6.22661593,3287.1,3286.7,0.002]
[1768630752697,0.28464603,3287.0,3286.7,0.002]
[1768630752897,6.22661593,3287.1,3286.7,0.002]
[1768630753087,0.28464619,3287.0,3286.7,0.002]
[1768630753290,6.22661593,3287.1,3286.7,0.002]
[1768630753588,0.28464568,3287.0,3286.7,0.002]
[1768630753788,6.22661593,3287.1,3286.7,0.002]
[1768630754019,0.28464601,3287.0,3286.7,0.002]
[1768630754222,6.22661593,3287.1,3286.7,0.002]
[1768630754522,0.28464894,3287.0,3286.7,0.002]
[1768630754686,6.22661593,3287.1,3286.7,0.002]
[1768630755027,0.28464769,3287.0,3286.7,0.002]
[1768630755188,6.22661593,3287.1,3286.7,0.002]
[1768630755390,0.28464705,3287.0,3286.7,0.002]
[1768630755604,3.54421798,3287.1,3286.7,0.002]
[1768630755818,0.28464434,3287.0,3286.7,0.002]
[1768630756001,2.68239795,3287.0,3286.7,0.002]
[1768630764122,5.72468718,3287.0,3286.7,0.002]
[1768630765234,2.68239795,3287.0,3286.7,0.002]
[1768630766032,5.72468912,3287.0,3286.7,0.002]
[1768630769630,2.68239795,3287.0,3286.7,0.002]
[1768630769932,5.7246876,3287.0,3286.7,0.002]
[1768630788752,0.91257112,3286.9,3286.7,0.002]
[1768630800084,3.95498302,3286.9,3286.7,0.002]
[1768630800389,6.74858724,3286.9,3286.7,0.002]
[1768630802185,3.07824185,3286.8,3285.9,0.002]
[1768630802368,2.79360422,3286.4,3285.9,0.002]
[1768630802563,2.79360422,3286.2,3285.9,0.002]
[1768630803282,2.79360422,3286.1,3285.9,0.002]
[1768630804889,5.8367514,3286.1,3285.9,0.002]
[1768630806209,3.04314718,3286.1,3285.9,0.002]
[1768630806377,2.79360422,3286.0,3285.9,0.002]
[1768630813314,5.83672524,3286.1,3285.9,0.002]
[1768630817726,2.79360422,3286.0,3285.5,0.00080564]
[1768630817899,3.29560422,3285.9,3285.1,2.6210488]
[1768630818093,0.502,3285.9,3285.1,2.6210488]
[1768630818293,1.41489324,3285.9,3285.1,2.6210488]
[1768630818521,1.41489324,3285.9,3285.3,2.62023537]
[1768630818721,0.502,3285.9,3285.3,2.62023537]
[1768630819228,3.95637291,3285.8,3285.3,2.62023537]
[1768630819725,3.04347967,3285.8,3285.3,2.62023537]
[1768630820023,0.91289324,3285.7,3285.3,2.62023537]
[1768630822127,0.91289324,3285.7,3285.6,0.002]
[1768630826040,0.502,3285.9,3285.7,2.53007982]
[1768630828235,0.502,3285.9,3285.6,0.002]
[1768630828741,0.502,3285.9,3285.6,2.53207982]
[1768630844461,0.502,3285.9,3285.6,0.002]
[1768630848157,0.502,3285.9,3285.6,2.72006491]
[1768630848362,0.502,3285.9,3285.6,3.29948255]
[1768630848763,3.17332518,3286.1,3285.6,3.29948255]
[1768630849266,3.17332518,3286.1,3285.6,6.34305667]
[1768630849862,3.17332518,3286.1,3285.6,3.29948255]
[1768630850161,3.17332518,3286.1,3285.6,2.72006491]
[1768630850863,6.21646118,3286.1,3285.6,2.72006491]
[1768630851063,3.17332518,3286.1,3285.6,2.72006491]
[1768630852067,2.67032518,3286.1,3285.6,2.72006491]
[1768630852565,2.67032518,3286.1,3285.6,5.76362015]
[1768630852767,2.67032518,3286.1,3285.6,2.72006491]
[1768630854170,2.67032518,3286.1,3285.4,0.34888299]
[1768630854861,0.503,3286.2,3285.6,0.34888299]
[1768630855170,3.12517364,3286.2,3285.6,0.34888299]
[1768630856874,6.16821968,3286.2,3285.7,0.34976424]
[1768630858297,3.12517364,3286.2,3285.7,0.34976424]
[1768630858477,3.12517364,3286.2,3285.7,0.35176424]
[1768630858652,0.001,3285.8,3285.7,0.35176424]
[1768630858972,5.66525272,3286.2,3285.7,0.35176424]
[1768630859147,6.58631608,3286.2,3285.7,0.35176424]
[1768630859348,3.54328697,3286.2,3285.7,0.35176424]
[1768630859547,2.62217364,3286.2,3285.7,0.35176424]
[1768630860387,2.62217364,3286.2,3285.7,3.39525159]
[1768630860687,5.66524043,3286.2,3285.7,0.35176424]
[1768630870588,5.66524043,3286.2,3285.4,0.002]
[1768630870589,2.62217364,3286.1,3285.4,0.002]
[1768630870793,2.62217364,3285.9,3285.4,0.002]
[1768630870989,3.12417364,3285.8,3285.4,0.002]
[1768630876298,2.62217364,3285.8,3285.4,0.002]
[1768630876486,3.12517364,3285.8,3285.4,0.002]
[1768630879504,3.12517364,3285.8,3285.4,0.03243769]
[1768630879691,3.12517364,3285.8,3285.4,0.57478879]
[1768630879996,0.503,3285.8,3285.4,0.57478879]
[1768630880375,0.503,3285.8,3285.4,0.5443511]
[1768630882767,0.503,3285.8,3285.7,0.002]
[1768630884923,0.001,3285.9,3285.7,0.002]
[1768630887117,3.04285719,3286.4,3285.7,0.002]
[1768630887118,3.37730006,3286.3,3285.8,0.60336427]
[1768630887324,6.4202445,3286.3,3285.8,0.60336427]
[1768630887706,2.87430006,3286.2,3285.8,0.60336427]
[1768630888820,2.87430006,3286.2,3285.7,0.002]
[1768630890126,2.87430006,3286.2,3285.7,0.6258291]
[1768630892032,2.87430006,3286.2,3285.7,3.66930771]
[1768630892197,2.87430006,3286.2,3285.7,4.3406057]
[1768630892397,2.69462573,3286.4,3285.8,0.65131633]
[1768630894627,0.001,3285.9,3285.8,3.69471519]
[1768630894794,2.69462573,3286.4,3285.8,3.69471519]
[1768630895510,2.69462573,3286.4,3285.9,0.43680132]
[1768630896030,5.73747753,3286.4,3285.9,0.43680132]
[1768630896832,5.73747753,3286.4,3285.8,3.69471519]
[1768630897234,3.0428518,3286.4,3285.8,3.69471519]
[1768630897411,2.69462573,3286.3,3285.8,3.69471519]
[1768630900434,2.69462573,3286.5,3285.9,0.70262581]
[1768630900640,2.69462573,3286.5,3286.0,0.70262581]
[1768630901739,2.69462573,3286.5,3286.0,1.38155827]
[1768630901943,2.69462573,3286.5,3286.1,0.70871245]
[1768630904221,2.69462573,3286.5,3286.1,3.75183243]
[1768630904502,3.19662573,3286.7,3286.1,3.75183243]
[1768630906635,0.001,3286.2,3286.1,3.75183243]
[1768630906815,2.69462573,3286.6,3286.1,4.94372238]
[1768630908444,2.69462573,3286.6,3286.1,1.9006024]
[1768630908603,2.69462573,3286.6,3286.1,0.70871245]
[1768630909004,2.69462573,3286.6,3286.0,3.72211837]
[1768630909433,2.69462573,3286.6,3286.1,3.04309792]
[1768630915750,2.69462573,3286.6,3286.0,4.4770661]
[1768630915920,2.69462573,3286.6,3286.0,3.79813364]
[1768630918248,0.001,3286.3,3286.0,3.79813364]
[1768630918447,2.92583038,3286.4,3286.0,3.79813364]
[1768630930253,2.92583038,3286.4,3286.3,0.002]
[1768630940533,2.92583038,3286.6,3286.3,0.002]
[1768630963177,5.96850197,3286.6,3286.3,0.002]
[1768630963402,2.91202005,3286.5,3286.3,0.002]
[1768630964216,2.91202005,3286.3,3286.0,0.002]
[1768630967291,2.91302005,3286.3,3286.0,0.002]
[1768631008653,3.04393583,3286.3,3286.0,0.002]
[1768631008944,3.1772589,3286.2,3286.0,0.002]
[1768631010313,3.1772589,3286.2,3285.7,0.002]
[1768631014747,3.1772589,3286.2,3286.0,0.002]
[1768631015051,3.84958004,3286.2,3286.0,0.002]
[1768631023348,3.05838426,3286.1,3286.0,0.002]
[1768631023856,6.10150528,3286.1,3286.0,0.002]
[1768631028934,3.05838426,3286.0,3285.7,0.002]
[1768631030327,3.04312102,3286.1,3285.7,0.002]
[1768631030632,6.10150528,3286.1,3285.7,0.002]
[1768631031164,7.13349114,3286.1,3285.7,0.002]
[1768631034793,3.01981541,3286.0,3285.7,0.002]
[1768631105241,3.935146,3286.1,3285.7,0.002]
[1768631105445,3.02229442,3286.1,3285.7,0.002]
[1768631111661,3.02229442,3286.1,3286.0,0.002]
[1768631111964,3.7704082,3286.1,3286.0,0.002]
[1768631112339,6.81352922,3286.1,3286.0,0.002]
[1768631115463,6.81352922,3286.1,3285.5,3.25716349]
[1768631115664,6.06541544,3286.1,3285.5,3.26250808]
[1768631115832,6.06541544,3286.1,3285.5,3.04898104]
[1768631119576,3.04312102,3286.1,3285.5,3.04898104]
[1768631119764,3.02229442,3286.0,3285.5,3.04898104]
[1768631121641,6.04783449,3286.1,3285.6,0.01189351]
[1768631123275,3.95586892,3286.2,3285.6,0.01189351]
[1768631123742,0.91280436,3286.2,3285.6,3.05545962]
[1768631123944,0.91280436,3286.2,3285.8,0.0181297]
[1768631124142,0.001,3286.3,3285.8,0.0181297]
[1768631124343,0.001,3286.3,3286.0,0.01821136]
[1768631125447,3.00471347,3286.7,3286.0,0.01926912]
[1768631125668,3.00471347,3286.7,3286.1,0.91265163]
[1768631125869,3.00471347,3286.7,3286.2,0.01926912]
[1768631127378,3.00471347,3286.7,3286.2,3.06228732]
[1768631128649,3.00471347,3286.7,3286.3,0.02530167]
[1768631133670,3.00471347,3286.7,3286.2,3.07976716]
[1768631133865,6.04728917,3286.7,3286.2,0.03676493]
[1768631134070,3.0413438,3286.6,3286.2,0.03676493]
[1768631134297,3.0413438,3286.6,3286.1,3.95575709]
[1768631134458,3.0413438,3286.6,3286.1,3.99435712]
[1768631135761,3.0413438,3286.6,3286.1,0.95125166]
[1768631137195,0.001,3286.4,3286.1,0.95125166]
[1768631137363,0.001,3286.4,3286.1,1.65502194]
[1768631138595,0.001,3286.4,3286.1,4.69814164]
[1768631140097,0.001,3286.4,3286.1,4.65954161]
[1768631143899,3.0423438,3286.4,3286.1,4.65954161]
[1768631145600,0.001,3286.4,3286.1,4.65954161]
[1768631149020,0.001,3286.3,3286.1,4.65954161]
[1768631149216,0.001,3286.4,3286.2,0.47169886]
[1768631149422,0.001,3286.4,3286.1,4.65954161]
[1768631149721,0.001,3286.4,3286.1,3.74688998]
[1768631151825,0.001,3286.4,3286.1,0.70377028]
[1768631151999,0.001,3286.4,3286.0,3.10062968]
[1768631153927,0.001,3286.4,3286.1,3.0430948]
[1768631162935,3.18106989,3286.4,3286.1,3.0430948]
[1768631168341,3.18106989,3286.4,3285.9,3.0432939]
[1768631172536,3.18106989,3286.4,3286.2,0.002]
[1768631201193,2.99085242,3286.3,3286.2,0.002]
[1768631205388,2.74538127,3286.3,3286.2,0.002]
[1768631205592,2.7056497,3286.3,3286.2,0.002]
[1768631210886,0.001,3286.4,3286.2,0.002]
[1768631212069,0.001,3286.4,3286.2,2.99514657]
[1768631212270,3.04331692,3286.8,3286.3,3.29266123]
[1768631212602,3.69322639,3286.8,3286.3,2.99314657]
[1768631212802,0.00081343,3286.8,3286.4,2.99314657]
[1768631213673,0.00080564,3287.2,3286.5,2.99314657]
[1768631214562,0.00080564,3287.2,3286.7,2.99314657]
[1768631218017,0.00080564,3287.2,3286.8,2.99314657]
[1768631218319,0.00080564,3287.2,3286.8,3.5967143]
[1768631219613,0.001,3286.9,3286.8,3.5967143]
[1768631219806,0.00080564,3287.2,3286.8,3.5967143]
[1768631220007,0.00080564,3287.2,3286.8,6.63918279]
[1768631222094,0.00080564,3287.2,3286.8,3.5967143]
[1768631222417,0.00080564,3287.2,3286.9,0.35967143]
[1768631223436,3.1912186,3287.2,3286.9,0.35967143]
[1768631223946,3.1912186,3287.2,3286.8,0.60356773]
[1768631231843,0.001,3286.9,3286.8,0.60356773]
[1768631240268,2.90667135,3286.9,3286.4,2.77666368]
[1768631240437,2.90667135,3286.9,3286.4,5.81947407]
[1768631244567,2.90667135,3286.9,3286.7,0.002]
[1768631244771,2.90767135,3286.9,3286.7,0.002]
[1768631258396,2.62278471,3286.9,3286.7,0.002]
[1768631273992,0.001,3286.9,3286.7,0.002]
[1768631274191,0.001,3286.9,3286.7,0.27206546]
[1768631274395,0.50280564,3287.2,3286.7,2.7006546]
[1768631274709,0.00080564,3287.2,3286.8,8.78360044]
[1768631275122,0.00080564,3287.2,3286.9,2.6986546]
[1768631279439,0.00080564,3287.2,3286.9,5.74101353]
[1768631279621,0.00080564,3287.2,3286.9,7.06376631]
[1768631287422,0.00080564,3287.2,3286.9,10.10614666]
[1768631287616,2.94711609,3287.4,3286.9,10.10614666]
[1768631288032,2.94711609,3287.4,3286.9,7.06376631]
[1768631293717,2.94711609,3287.4,3287.2,0.002]
[1768631300965,2.94407385,3287.4,3287.2,0.002]
[1768631302964,2.72530723,3287.3,3286.9,0.002]
[1768631303169,2.72530723,3287.3,3286.7,0.002]
[1768631306770,2.72530723,3287.0,3286.7,0.002]
[1768631306939,3.22730723,3287.0,3286.7,0.002]
[1768631323514,2.5598915,3286.9,3286.7,0.002]
[1768631337932,2.70279587,3286.8,3286.7,0.002]
[1768631351546,3.31331404,3286.9,3286.7,0.002]
[1768631360321,6.35569513,3286.9,3286.7,0.002]
[1768631360652,3.31331404,3286.9,3286.7,0.002]
[1768631364060,6.35571448,3286.9,3286.7,0.002]
[1768631365055,0.61051817,3286.9,3286.7,0.002]
[1768631369467,3.25756267,3286.9,3286.7,0.002]
[1768631372662,3.25756267,3286.9,3286.4,0.002]
[1768631372663,0.68018665,3286.8,3286.4,0.002]
[1768631372866,2.68954709,3286.8,3286.4,0.002]
[1768631376680,2.68954709,3286.8,3286.7,0.002]
[1768631399300,5.99256061,3287.0,3286.7,0.002]
[1768631400504,2.95023282,3287.0,3286.7,0.002]
[1768631401004,0.502,3287.0,3286.7,0.002]
[1768631401193,1.10134605,3287.0,3286.7,2.50118015]
[1768631410607,0.502,3287.0,3286.7,2.50118015]
[1768631418528,0.502,3287.0,3286.7,0.002]
[1768631420628,2.44823282,3286.8,3286.4,0.002]
[1768631422704,5.59404077,3287.0,3286.4,2.47066217]
[1768631422897,0.502,3286.9,3286.4,2.47066217]
[1768631423298,0.502,3286.9,3286.7,0.002]
[1768631423511,1.41592444,3286.9,3286.7,0.002]
[1768631424905,3.54438805,3286.9,3286.7,0.002]
[1768631431945,2.45337486,3286.8,3286.7,0.002]
[1768631432642,3.54438805,3286.9,3286.7,0.002]
[1768631434715,0.502,3286.9,3286.7,0.002]
[1768631435546,3.54438319,3286.9,3286.7,0.002]
[1768631435744,4.44848114,3286.9,3286.7,0.002]
[1768631440516,1.40609795,3286.9,3286.7,0.002]
[1768631440725,0.502,3286.9,3286.7,2.44958119]
[1768631450271,0.502,3286.9,3286.7,0.002]
[1768631470470,0.502,3286.9,3286.7,2.42372155]
[1768631470673,0.001,3287.1,3286.7,2.42372155]
[1768631470882,0.502,3287.0,3286.7,2.42372155]
[1768631471690,0.502,3287.0,3286.7,5.46624976]
[1768631471863,0.001,3287.1,3286.8,2.42103183]
[1768631472067,0.502,3287.0,3286.8,2.42103183]
[1768631473178,0.001,3287.1,3286.8,2.42103183]
[1768631473475,0.503,3287.1,3286.8,2.42103183]
[1768631474689,0.503,3287.1,3286.8,5.46349838]
[1768631475394,0.503,3287.1,3286.8,2.42103183]
[1768631480088,0.001,3287.1,3286.8,2.42103183]
[1768631480392,0.503,3287.1,3286.8,2.42103183]
[1768631481093,0.503,3287.1,3286.8,5.46349892]
[1768631481299,0.503,3287.1,3286.9,2.41517018]
[1768631482400,0.001,3287.1,3286.9,2.41517018]
[1768631487881,0.001,3287.1,3286.9,5.45753954]
[1768631489804,3.04185147,3287.5,3287.0,2.40933358]
[1768631489983,0.502,3287.3,3287.0,2.40933358]
[1768631490400,0.502,3287.3,3286.8,2.40878615]
[1768631492211,0.502,3287.3,3286.8,5.45123879]
[1768631492522,0.502,3287.3,3286.9,2.4071813]
[1768631495116,0.001,3287.0,3286.9,2.4071813]
[1768631495324,0.502,3287.3,3286.9,2.95234469]
[1768631498513,2.93222221,3287.3,3286.9,0.54516339]
[1768631498700,2.43022221,3287.2,3286.7,0.002]
[1768631498901,2.43022221,3287.2,3286.7,3.0445622]
[1768631503720,2.43022221,3287.2,3286.7,2.40375062]
[1768631504018,2.43022221,3287.3,3286.7,2.40375062]
[1768631504248,2.43022221,3287.3,3286.8,0.68456799]
[1768631504413,2.43022221,3287.3,3286.8,3.08585828]
[1768631505690,2.43022221,3287.3,3286.8,2.40129029]
[1768631506738,0.502,3287.4,3286.9,2.40038543]
[1768631507091,0.001,3287.0,3286.9,2.40038543]
[1768631507292,5.97422062,3287.4,3286.9,2.40038543]
[1768631515335,2.49980843,3287.3,3286.9,2.40038543]
[1768631519037,0.001,3287.1,3286.9,2.40038543]
[1768631519259,0.001,3287.1,3286.9,2.94487515]
[1768631527149,0.91252393,3287.7,3287.0,2.39104616]
[1768631527351,2.49980843,3287.6,3287.0,2.39104616]
[1768631528651,2.49980843,3287.6,3287.1,3.04219524]
[1768631528870,2.49980843,3287.6,3287.1,5.43254768]
[1768631529166,2.49980843,3287.6,3287.2,0.54325477]
[1768631531538,2.49980843,3287.6,3287.1,2.39035244]
[1768631532554,2.49980843,3287.6,3287.1,5.43247913]
[1768631532951,2.49980843,3287.6,3287.1,5.43254026]
[1768631533154,2.49980843,3287.6,3287.1,2.39035244]
[1768631533462,2.49980843,3287.6,3287.0,3.04224578]
[1768631533663,2.49980843,3287.6,3287.0,3.94403438]
[1768631539258,0.502,3287.7,3287.1,2.38713124]
[1768631539459,2.49980843,3287.8,3287.3,2.38682984]
[1768631539630,0.50280728,3287.9,3287.3,2.38682984]
[1768631540032,3.00261571,3287.9,3287.3,2.38682984]
[1768631540231,3.00261571,3287.9,3287.4,3.06963637]
[1768631540643,2.50061571,3287.9,3287.4,2.38682984]
[1768631543048,2.50061571,3287.9,3287.5,3.04182509]
[1768631546867,0.00080728,3287.9,3287.6,2.38453994]
[1768631547539,0.502,3288.0,3287.6,2.3842683]
[1768631547784,0.502,3288.0,3287.7,0.84679185]
[1768631547982,3.12499501,3288.0,3287.7,0.84679185]
[1768631550639,3.12499501,3288.0,3287.7,3.88842051]
[1768631551768,0.502,3288.0,3287.7,3.88842051]
[1768631552765,0.502,3288.0,3287.7,0.84679185]
[1768631553369,0.502,3288.0,3287.7,3.88840761]
[1768631554064,0.502,3288.0,3287.7,0.84679185]
[1768631554244,0.001,3287.7,3287.6,5.42594845]
[1768631554441,2.97454421,3288.0,3287.6,3.04168015]
[1768631557073,2.47254421,3288.0,3287.6,3.04168015]
[1768631566184,0.001,3287.7,3287.6,3.04168015]
[1768631566384,2.47254421,3288.0,3287.6,3.88825836]
[1768631566565,2.47254421,3288.0,3287.6,3.04168015]
[1768631572685,2.47254421,3288.0,3287.6,5.41968409]
[1768631575690,2.47254421,3288.0,3287.6,3.04168015]
[1768631576080,2.47254421,3288.0,3287.5,2.37742098]
[1768631577887,2.43494602,3288.1,3287.7,2.37704342]
[1768631578260,2.43494602,3288.1,3287.6,3.04173257]
[1768631578591,0.001,3287.7,3287.6,3.04173257]
[1768631578887,2.43494602,3288.1,3287.6,3.88777405]
[1768631579091,2.43494602,3288.1,3287.6,3.04173257]
[1768631580900,2.43494602,3288.1,3287.6,5.41822574]
[1768631581589,2.43494602,3288.1,3287.6,6.08346514]
[1768631581794,2.43494602,3288.1,3287.7,2.37631396]
[1768631582194,2.43494602,3288.1,3287.6,3.04173257]
[1768631584421,2.43494602,3288.1,3287.6,5.41752113]
[1768631584569,2.43494602,3288.1,3287.6,8.4592537]
[1768631584898,0.50280687,3288.2,3287.7,2.37578856]
[1768631585197,2.93775289,3288.2,3287.7,2.37578856]
[1768631585968,2.93775289,3288.2,3287.7,5.4173741]
[1768631589267,2.93775289,3288.2,3287.7,3.04158554]
[1768631590201,0.002,3287.9,3287.7,3.04158554]
[1768631590391,2.93775289,3288.2,3287.7,3.97202139]
[1768631590702,2.93975289,3288.2,3287.7,3.04158554]
[1768631591073,2.93975289,3288.2,3287.6,5.41681676]
[1768631600610,2.93975289,3288.2,3287.6,8.45854933]
[1768631600784,2.93975289,3288.2,3287.7,2.37327427]
[1768631601916,2.43775289,3288.2,3287.7,2.37327427]
[1768631602115,2.43775289,3288.2,3287.8,2.37299141]
[1768631602315,0.00280687,3288.2,3287.8,2.37299141]
[1768631602894,0.00280687,3288.2,3287.8,5.41445194]
[1768631603413,0.001,3287.9,3287.8,5.41445194]
[1768631603585,0.00280687,3288.2,3287.8,5.41445194]
[1768631604321,0.00280687,3288.2,3287.9,0.9301759]
[1768631605917,0.00280687,3288.2,3287.9,0.8801759]
[1768631606087,0.00280687,3288.2,3287.8,5.41445194]
[1768631606415,0.00280687,3288.2,3287.9,2.37231222]
[1768631607919,0.00280687,3288.2,3287.8,3.04146053]
[1768631608089,0.00280687,3288.2,3287.7,5.41378132]
[1768631608291,2.57524724,3288.2,3287.6,3.04170494]
[1768631609425,2.57524724,3288.2,3287.7,3.04163466]
[1768631611091,2.57524724,3288.2,3287.6,5.41340371]
[1768631611292,2.57524724,3288.2,3287.6,6.30912406]
[1768631615927,2.57524724,3288.2,3287.9,0.002]
[1768631621531,5.61643801,3288.2,3287.9,0.002]
[1768631621734,2.62331463,3288.1,3287.9,0.002]
[1768631621935,2.62331463,3288.1,3287.6,0.002]
[1768631622622,2.62331463,3288.0,3287.6,0.002]
[1768631630044,2.62331463,3288.0,3287.9,0.001]
[1768631717528,2.39856929,3288.1,3287.9,0.001]
[1768631727330,0.50480687,3288.2,3287.9,0.001]
[1768631727713,2.72742217,3288.2,3287.9,0.001]
[1768631733835,0.50480687,3288.2,3287.9,1.74580186]
[1768631740941,0.50480687,3288.2,3287.9,0.001]
[1768631746722,2.78411535,3288.2,3287.9,0.001]
[1768631753759,5.82529616,3288.2,3287.9,0.001]
[1768631753944,2.78411535,3288.2,3287.9,0.001]
[1768631768353,0.50480687,3288.2,3287.9,0.001]
[1768631774562,0.00280687,3288.2,3287.9,1.45533135]
[1768631776893,0.00280687,3288.2,3287.9,4.49676904]
[1768631777074,0.00280687,3288.2,3288.0,1.44370885]
[1768631777273,0.502,3288.3,3288.0,1.44370885]
[1768631777482,2.06438448,3288.5,3288.0,1.44370885]
[1768631777683,2.56638448,3288.5,3288.0,1.44370885]
[1768631777995,0.502,3288.5,3288.0,1.44370885]
[1768631778187,3.54290937,3288.5,3288.1,1.4384887]
[1768631778489,0.502,3288.5,3288.1,1.4384887]
[1768631778659,2.56638448,3288.5,3288.1,1.4384887]
[1768631778867,2.56638448,3288.5,3287.9,3.04243769]
[1768631779184,0.502,3288.5,3288.0,1.43332828]
[1768631779582,2.06519217,3288.9,3288.1,5.8683548]
[1768631779792,2.06519217,3288.9,3288.2,1.42819919]
[1768631780582,2.06519217,3288.9,3288.3,2.3352256]
[1768631780962,2.06519217,3288.9,3288.3,1.42313447]
[1768631781370,2.06519217,3288.9,3288.4,0.91209113]
[1768631782497,2.06519217,3288.9,3288.4,1.44971514]
[1768631782869,2.06519217,3288.9,3288.4,0.53762401]
[1768631783206,0.002,3288.5,3288.4,0.53762401]
[1768631783370,2.01680936,3288.8,3288.4,0.53762401]
[1768631783567,2.01680936,3288.8,3288.4,1.44971514]
[1768631783772,1.63865761,3288.8,3288.4,1.44971514]
[1768631787307,1.63865761,3288.8,3288.4,0.53762401]
[1768631787507,1.63865761,3288.8,3288.5,1.41226843]
[1768631787874,1.63865761,3288.8,3288.5,0.5001773]
[1768631788223,1.63865761,3288.8,3288.6,0.91209113]
[1768631797310,0.00280769,3288.9,3288.6,0.91209113]
[1768631797605,0.50480769,3288.9,3288.6,0.91209113]
[1768631798009,2.63039046,3288.9,3288.6,0.91209113]
[1768631812160,2.63039046,3288.9,3288.4,4.75038857]
[1768631814624,2.63039046,3288.9,3288.5,1.69046481]
[1768631814625,0.00280769,3288.9,3288.5,1.69046481]
[1768631814829,0.00280769,3288.9,3288.6,1.69046481]
[1768631817332,0.00280769,3288.9,3288.6,4.73127087]
[1768631822284,2.05467383,3289.1,3288.6,3.04080606]
[1768631822583,2.05467383,3289.1,3288.7,1.67518689]
[1768631825689,2.05467383,3289.1,3288.6,3.52312521]
[1768631826256,2.05467383,3289.1,3288.6,5.19008468]
[1768631831508,2.05467383,3289.1,3288.9,0.001]
[1768631874138,0.502,3289.2,3288.9,0.001]
[1768631876344,0.502,3289.2,3288.9,1.58859249]
[1768631877645,0.504,3289.2,3288.9,1.58859249]
[1768631883754,0.504,3289.2,3288.9,0.001]
[1768631891360,0.002,3289.2,3288.9,0.001]
[1768631891534,0.002,3289.2,3288.9,1.57359033]
[1768631894260,0.002,3289.2,3288.9,0.001]
[1768631919458,1.89079884,3289.2,3288.9,0.001]
[1768631929575,1.89079884,3289.2,3288.4,3.54291851]
[1768631929782,1.89079884,3289.2,3288.7,3.04071261]
[1768631933175,1.89079884,3289.2,3288.7,3.95270115]
[1768631937004,1.89079884,3289.2,3288.7,0.91198854]
[1768631938104,0.002,3288.9,3288.7,0.91198854]
[1768631938306,1.89079884,3289.2,3288.7,0.91198854]
[1768631940203,1.89079884,3289.2,3288.7,3.95267914]
[1768631945588,1.89079884,3289.2,3288.7,0.91198854]
[1768631949722,0.002,3288.9,3288.7,0.91198854]
[1768631949897,2.01858341,3289.1,3288.7,1.76566536]
[1768631961515,0.002,3288.9,3288.7,1.76566536]
[1768631961815,2.01858341,3289.1,3288.7,1.76566536]
[1768631965137,2.01858341,3289.1,3288.7,4.80637592]
[1768631974044,2.01858341,3289.1,3288.7,3.89438738]
[1768631980147,0.002,3289.2,3288.7,5.41568758]
[1768631980447,0.002,3289.2,3288.8,0.84564933]
[1768631980635,0.002,3289.2,3288.7,5.4739993]
[1768631980836,0.002,3289.2,3288.7,4.56201076]
[1768631981752,0.002,3289.2,3288.8,1.52069594]
[1768631984555,0.002,3289.2,3288.8,4.56128198]
[1768631985159,0.002,3288.9,3288.8,4.56128198]
[1768631985346,0.002,3289.2,3288.8,5.41268686]
[1768631985547,0.002,3289.2,3288.8,4.56128198]
[1768631985753,2.0185434,3289.2,3288.8,3.04058604]
[1768631988961,2.0185434,3289.2,3288.7,4.55601405]
[1768631992965,2.0185434,3289.2,3288.8,3.95260186]
[1768631993565,2.0185434,3289.2,3288.8,3.04061332]
[1768631993768,2.0185434,3289.2,3288.9,0.91198854]
[1768632015560,0.002,3289.2,3288.9,0.91198854]
[1768632017779,1.93842634,3289.2,3288.9,0.91198854]
[1768632018896,0.002,3289.2,3288.9,5.34266478]
[1768632025910,1.93642634,3289.3,3288.9,5.34266478]
[1768632027215,0.002,3289.4,3289.0,1.36444547]
[1768632027722,0.002,3289.4,3289.1,0.91193864]
[1768632028819,0.002,3289.4,3289.1,2.27103849]
[1768632029202,0.002,3289.4,3289.0,3.04037074]
[1768632029403,0.002,3289.4,3288.9,5.26834289]
[1768632029607,0.002,3289.4,3289.2,0.91193864]
[1768632049825,1.84481878,3289.4,3289.2,0.91193864]
[1768632053739,1e-08,3289.7,3289.5,1.29571622]
[1768632053938,1.80078774,3290.2,3289.4,4.43524682]
[1768632053939,1.79797841,3290.0,3289.4,4.43524682]
[1768632054138,1.79797841,3290.0,3289.5,0.54014805]